fUSD/lending_fUSD_20240629
["ID","MTS","AMOUNT","RATE_DAILY","PERIOD"]
[330613431,1719624675157,-500.0,0.00022027,3]
[330613432,1719624675167,-1520.75,0.00022027,3]
[330613433,1719624675177,-500.0,0.00022027,3]
[330613434,1719624675187,-534.49,0.00022027,3]
[330613435,1719624675196,-1584.93,0.00022027,3]
[330613436,1719624675206,-744.27,0.00022027,3]
[330613437,1719624675215,-1298.46,0.00022027,3]
[330613438,1719624675225,-563.85,0.00022027,3]
[330613439,1719624675234,-1325.67,0.00022027,3]
[330613440,1719624675245,-500.0,0.00022027,3]
[330613441,1719624675255,-500.0,0.00022027,3]
[330613442,1719624675264,-602.01,0.00022027,3]
[330613443,1719624675274,-1368.79,0.00022027,3]
[330613444,1719624675283,-499.44910071,0.00022027,3]
[330613445,1719624675293,-500.0,0.00022027,3]
[330613446,1719624675302,-1256.47,0.00022027,3]
[330613447,1719624675312,-1395.68,0.00022027,3]
[330613448,1719624675322,-1131.66,0.00022027,3]
[330613449,1719624675332,-1860.55,0.00022027,3]
[330613450,1719624675342,-1301.25,0.00022027,3]
[330613451,1719624675355,-500.0,0.00022027,3]
[330613452,1719624675365,-2492.98,0.00022027,3]
[330613453,1719624675374,-956.58,0.00022027,3]
[330613454,1719624675384,-500.0,0.00022027,3]
[330613455,1719624675393,-1280.97,0.00022027,3]
[330613456,1719624675404,-1607.49,0.00022027,3]
[330613457,1719624675414,-500.0,0.00022027,3]
[330613458,1719624675423,-500.0,0.00022027,3]
[330613459,1719624675433,-1825.36,0.00022027,3]
[330613460,1719624675442,-568.9,0.00022027,3]
[330613461,1719624675451,-611.62,0.00022027,3]
[330613462,1719624675461,-971.35,0.00022027,3]
[330613463,1719624675470,-519.67,0.00022027,3]
[330613464,1719624675480,-840.41,0.00022027,3]
[330613465,1719624675491,-2314.34,0.00022027,3]
[330613466,1719624675510,-500.0,0.00022027,3]
[330613467,1719624675522,-1278.36,0.00022027,3]
[330613468,1719624675532,-1062.64,0.00022027,3]
[330613469,1719624675541,-726.74,0.00022027,3]
[330613470,1719624675551,-719.85,0.00022027,3]
[330613471,1719624675561,-805.35,0.00022027,3]
[330613472,1719624675570,-1378.29,0.00022027,3]
[330613473,1719624675580,-500.0,0.00022027,3]
[330613474,1719624675590,-500.0,0.00022027,3]
[330613475,1719624675600,-1224.35,0.00022027,3]
[330613476,1719624675609,-1229.71,0.00022027,3]
[330613477,1719624675619,-869.06,0.00022027,3]
[330613478,1719624675628,-992.34,0.00022027,3]
[330613479,1719624675638,-1654.9,0.00022027,3]
[330613480,1719624675647,-1704.78,0.00022027,3]
[330613481,1719624675657,-2076.09,0.00022027,3]
[330613482,1719624675666,-651.81,0.00022027,3]
[330613483,1719624675675,-500.0,0.00022027,3]
[330613484,1719624675686,-500.0,0.00022027,3]
[330613485,1719624675695,-1556.6,0.00022027,3]
[330613486,1719624675705,-3370.19,0.00022027,3]
[330613487,1719624675714,-2203.32,0.00022027,3]
[330613488,1719624675726,-560.1,0.00022027,3]
[330613489,1719624675735,-500.0,0.00022027,3]
[330613490,1719624675745,-500.0,0.00022027,3]
[330613491,1719624675755,-798.14,0.00022027,3]
[330613492,1719624675765,-500.0,0.00022027,3]
[330613493,1719624675775,-500.0,0.00022027,3]
[330613494,1719624675783,-500.0,0.00022027,3]
[330613495,1719624675792,-500.0,0.00022027,3]
[330613496,1719624675801,-500.0,0.00022027,3]
[330613497,1719624675812,-1154.66,0.00022027,3]
[330613498,1719624675822,-500.0,0.00022027,3]
[330613499,1719624675833,-2649.29,0.00022027,3]
[330613500,1719624675843,-1088.38,0.00022027,3]
[330613501,1719624675853,-3995.74,0.00022027,3]
[330613502,1719624675862,-602.85,0.00022027,3]
[330613503,1719624675872,-278.43,0.00022027,3]
[330613504,1719624675882,-500.0,0.00022027,3]
[330613505,1719624675891,-715.7,0.00022027,3]
[330613506,1719624675901,-500.0,0.00022027,3]
[330613507,1719624675911,-500.0,0.00022027,3]
[330613508,1719624675920,-500.0,0.00022027,3]
[330613509,1719624675930,-1200.89,0.00022027,3]
[330613510,1719624675939,-500.0,0.00022027,3]
[330613511,1719624675949,-500.0,0.00022027,3]
[330613512,1719624675958,-1090.08,0.00022027,3]
[330613513,1719624675968,-500.0,0.00022027,3]
[330613514,1719624675977,-762.16,0.00022027,3]
[330613515,1719624675986,-500.0,0.00022027,3]
[330613516,1719624675996,-500.0,0.00022027,3]
[330613517,1719624676006,-500.0,0.00022027,3]
[330613518,1719624676015,-829.56,0.00022027,3]
[330613519,1719624676026,-993.51,0.00022027,3]
[330613520,1719624676035,-1364.87,0.00022027,3]
[330613521,1719624676044,-500.0,0.00022027,3]
[330613522,1719624676054,-657.96,0.00022027,3]
[330613523,1719624676064,-2538.87,0.00022027,3]
[330613524,1719624676073,-500.0,0.00022027,3]
[330613525,1719624676083,-564.74,0.00022027,3]
[330613526,1719624676093,-893.56,0.00022027,3]
[330613527,1719624676103,-736.25,0.00022027,3]
[330613528,1719624676113,-12682.01,0.00022027,3]
[330613529,1719624676122,-500.0,0.00022027,3]
[330613530,1719624676131,-880.57,0.00022027,3]
[330613531,1719624676141,-642.9,0.00022027,3]
[330613532,1719624676151,-500.0,0.00022027,3]
[330613533,1719624676160,-500.0,0.00022027,3]
[330613534,1719624676170,-500.0,0.00022027,3]
[330613535,1719624676180,-522.87,0.00022027,3]
[330613536,1719624676190,-1053.53,0.00022027,3]
[330613537,1719624676199,-2414.51,0.00022027,3]
[330613538,1719624676208,-759.87,0.00022027,3]
[330613539,1719624676218,-601.93,0.00022027,3]
[330613540,1719624676227,-500.0,0.00022027,3]
[330613541,1719624676237,-1061.98,0.00022027,3]
[330613542,1719624676247,-848.12,0.00022027,3]
[330613543,1719624676256,-1264.22,0.00022027,3]
[330613544,1719624676265,-500.0,0.00022027,3]
[330613545,1719624676275,-500.0,0.00022027,3]
[330613546,1719624676284,-507.94,0.00022027,3]
[330613547,1719624676293,-766.48,0.00022027,3]
[330613548,1719624676303,-1086.97,0.00022027,3]
[330613549,1719624676312,-1177.5,0.00022027,3]
[330613550,1719624676321,-500.0,0.00022027,3]
[330613551,1719624676331,-760.6,0.00022027,3]
[330613552,1719624676340,-500.0,0.00022027,3]
[330613553,1719624676354,-500.0,0.00022027,3]
[330613554,1719624676363,-1973.51,0.00022027,3]
[330613555,1719624676373,-2321.48,0.00022027,3]
[330613556,1719624676382,-2233.52,0.00022027,3]
[330613557,1719624676394,-2749.79,0.00022027,3]
[330613558,1719624676403,-500.0,0.00022027,3]
[330613559,1719624676413,-963.69,0.00022027,3]
[330613560,1719624676422,-1074.85,0.00022027,3]
[330613561,1719624676434,-1377.5,0.00022027,3]
[330613562,1719624676444,-500.0,0.00022027,3]
[330613563,1719624676454,-500.0,0.00022027,3]
[330613564,1719624676464,-775.21,0.00022027,3]
[330613565,1719624676474,-500.0,0.00022027,3]
[330613566,1719624676484,-500.0,0.00022027,3]
[330613567,1719624676493,-1065.55,0.00022027,3]
[330613568,1719624676503,-500.0,0.00022027,3]
[330613569,1719624676513,-500.0,0.00022027,3]
[330613570,1719624676523,-500.0,0.00022027,3]
[330613571,1719624676533,-500.0,0.00022027,3]
[330613572,1719624676543,-500.0,0.00022027,3]
[330613573,1719624676552,-3085.74,0.00022027,3]
[330613574,1719624676562,-500.0,0.00022027,3]
[330613575,1719624676572,-1623.53,0.00022027,3]
[330613576,1719624676582,-500.0,0.00022027,3]
[330613577,1719624676591,-943.44,0.00022027,3]
[330613579,1719624676601,-745.35,0.00022027,3]
[330613580,1719624676611,-625.74,0.00022027,3]
[330613581,1719624676621,-500.0,0.00022027,3]
[330613582,1719624676631,-501.18,0.00022027,3]
[330613583,1719624676640,-174.96700971,0.00022027,3]
[330613584,1719624676649,-500.0,0.00022027,3]
[330613585,1719624676659,-1679.91,0.00022027,3]
[330613586,1719624676669,-500.0,0.00022027,3]
[330613587,1719624676678,-1132.91,0.00022027,3]
[330613588,1719624676688,-500.0,0.00022027,3]
[330613589,1719624676698,-500.0,0.00022027,3]
[330613590,1719624676708,-500.0,0.00022027,3]
[330613591,1719624676718,-1318.36,0.00022027,3]
[330613592,1719624676727,-500.0,0.00022027,3]
[330613593,1719624676737,-500.0,0.00022027,3]
[330613594,1719624676747,-500.0,0.00022027,3]
[330613595,1719624676757,-736.44,0.00022027,3]
[330613596,1719624676767,-840.02,0.00022027,3]
[330613597,1719624676777,-1081.59,0.00022027,3]
[330613598,1719624676787,-1849.11,0.00022027,3]
[330613599,1719624676796,-500.0,0.00022027,3]
[330613600,1719624676805,-1000.0,0.00022027,3]
[330613601,1719624676814,-500.0,0.00022027,3]
[330613602,1719624676823,-500.0,0.00022027,3]
[330613603,1719624676833,-500.0,0.00022027,3]
[330613604,1719624676842,-500.0,0.00022027,3]
[330613605,1719624676852,-1597.58,0.00022027,3]
[330613606,1719624676861,-1986.25,0.00022027,3]
[330613607,1719624676871,-1585.98,0.00022027,3]
[330613608,1719624676880,-608.57,0.00022027,3]
[330613609,1719624676890,-500.0,0.00022027,3]
[330613610,1719624676901,-1073.01,0.00022027,3]
[330613611,1719624676911,-1000.61,0.00022027,3]
[330613612,1719624676920,-1643.07,0.00022027,3]
[330613613,1719624676930,-500.0,0.00022027,3]
[330613614,1719624676939,-500.0,0.00022027,3]
[330613615,1719624676948,-1527.95,0.00022027,3]
[330613616,1719624676958,-1188.51,0.00022027,3]
[330613617,1719624676968,-1015.94,0.00022027,3]
[330613618,1719624676978,-2163.62,0.00022027,3]
[330613619,1719624676987,-500.0,0.00022027,3]
[330613620,1719624676999,-500.0,0.00022027,3]
[330613621,1719624677008,-1604.57,0.00022027,3]
[330613622,1719624677018,-500.0,0.00022027,2]
[330613623,1719624677028,-588.74,0.00022027,3]
[330613624,1719624677039,-689.63,0.00022027,3]
[330613625,1719624677050,-1311.4,0.00022027,3]
[330613626,1719624677060,-973.69,0.00022027,3]
[330613627,1719624677070,-2190.51,0.00022027,3]
[330613628,1719624677079,-500.0,0.00022027,3]
[330613629,1719624677089,-739.67,0.00022027,3]
[330613630,1719624677098,-1221.85,0.00022027,3]
[330613631,1719624677108,-845.18,0.00022027,3]
[330613632,1719624677118,-500.0,0.00022027,3]
[330613633,1719624677127,-500.0,0.00022027,3]
[330613634,1719624677137,-1064.69,0.00022027,3]
[330613635,1719624677146,-500.0,0.00022027,3]
[330613636,1719624677156,-1372.43,0.00022027,3]
[330613637,1719624677165,-1381.66,0.00022027,3]
[330613638,1719624677175,-569.83,0.00022027,3]
[330613639,1719624677186,-2728.8,0.00022027,3]
[330613640,1719624677194,-500.0,0.00022027,3]
[330613641,1719624677204,-526.85,0.00022027,3]
[330613642,1719624677216,-500.0,0.00022027,3]
[330613643,1719624677226,-1303.73,0.00022027,3]
[330613644,1719624677235,-500.0,0.00022027,3]
[330613645,1719624677244,-500.0,0.00022027,3]
[330613646,1719624677254,-832.33,0.00022027,3]
[330613647,1719624677263,-2395.26,0.00022027,3]
[330613648,1719624677272,-1056.71,0.00022027,3]
[330613649,1719624677282,-1254.99,0.00022027,3]
[330613650,1719624677293,-500.0,0.00022027,3]
[330613651,1719624677303,-500.0,0.00022027,3]
[330613652,1719624677313,-2107.44,0.00022027,3]
[330613653,1719624677322,-986.91,0.00022027,3]
[330613654,1719624677332,-2584.99,0.00022027,3]
[330613655,1719624677342,-704.01,0.00022027,3]
[330613656,1719624677354,-1009.52,0.00022027,3]
[330613657,1719624677364,-1411.17,0.00022027,3]
[330613658,1719624677373,-500.0,0.00022027,3]
[330613659,1719624677382,-500.0,0.00022027,3]
[330613660,1719624677392,-500.0,0.00022027,3]
[330613661,1719624677401,-500.0,0.00022027,3]
[330613662,1719624677410,-1273.01,0.00022027,3]
[330613663,1719624677419,-1001.05,0.00022027,3]
[330613664,1719624677429,-500.0,0.00022027,3]
[330613665,1719624677439,-1327.81,0.00022027,3]
[330613666,1719624677448,-500.0,0.00022027,3]
[330613667,1719624677457,-500.0,0.00022027,3]
[330613668,1719624677467,-1132.22,0.00022027,3]
[330613669,1719624677476,-500.0,0.00022027,3]
[330613670,1719624677485,-500.0,0.00022027,3]
[330613671,1719624677494,-937.96,0.00022027,3]
[330613672,1719624677503,-587.85,0.00022027,3]
[330613673,1719624677513,-2259.45,0.00022027,3]
[330613674,1719624677522,-500.0,0.00022027,3]
[330613675,1719624677531,-500.0,0.00022027,3]
[330613676,1719624677541,-500.0,0.00022027,3]
[330613677,1719624677550,-2428.22,0.00022027,3]
[330613678,1719624677559,-500.0,0.00022027,3]
[330613679,1719624677568,-977.27,0.00022027,3]
[330613680,1719624677578,-181.39732695,0.00022027,3]
[330613681,1719624677587,-500.0,0.00022027,3]
[330613682,1719624677596,-981.24,0.00022027,3]
[330613683,1719624677607,-500.0,0.00022027,3]
[330613684,1719624677616,-974.78,0.00022027,3]
[330613685,1719624677626,-1714.27,0.00022027,3]
[330613686,1719624677635,-500.0,0.00022027,3]
[330613687,1719624677644,-576.48,0.00022027,3]
[330613688,1719624677654,-967.39,0.00022027,3]
[330613689,1719624677663,-500.0,0.00022027,3]
[330613690,1719624677673,-1137.65,0.00022027,3]
[330613691,1719624677682,-568.89,0.00022027,3]
[330613692,1719624677692,-500.0,0.00022027,3]
[330613693,1719624677701,-241.99096479,0.00022027,3]
[330613694,1719624677711,-984.13,0.00022027,3]
[330613695,1719624677720,-500.0,0.00022027,3]
[330613696,1719624677729,-500.0,0.00022027,3]
[330613697,1719624677742,-500.0,0.00022027,3]
[330613698,1719624677751,-727.21,0.00022027,3]
[330613699,1719624677762,-1214.06,0.00022027,3]
[330613700,1719624677772,-500.0,0.00022027,3]
[330613701,1719624677782,-2780.98,0.00022027,3]
[330613702,1719624677791,-1193.36,0.00022027,3]
[330613703,1719624677801,-500.0,0.00022027,3]
[330613704,1719624677810,-759.71,0.00022027,3]
[330613705,1719624677820,-1297.69,0.00022027,3]
[330613706,1719624677829,-500.0,0.00022027,3]
[330613707,1719624677839,-500.0,0.00022027,3]
[330613708,1719624677849,-500.0,0.00022027,3]
[330613709,1719624677858,-500.0,0.00022027,3]
[330613710,1719624677867,-500.0,0.00022027,3]
[330613711,1719624677876,-500.0,0.00022027,3]
[330613712,1719624677886,-505.96,0.00022027,3]
[330613713,1719624677895,-500.0,0.00022027,3]
[330613714,1719624677905,-1124.22,0.00022027,3]
[330613715,1719624677915,-570.66,0.00022027,3]
[330613716,1719624677924,-500.0,0.00022027,3]
[330613717,1719624677934,-633.29,0.00022027,3]
[330613718,1719624677943,-845.43,0.00022027,3]
[330613719,1719624677952,-500.0,0.00022027,3]
[330613720,1719624677964,-1095.2,0.00022027,3]
[330613721,1719624677973,-500.0,0.00022027,3]
[330613722,1719624677982,-500.0,0.00022027,3]
[330613723,1719624677991,-500.0,0.00022027,3]
[330613724,1719624678001,-748.95,0.00022027,3]
[330613725,1719624678010,-500.0,0.00022027,3]
[330613726,1719624678019,-1324.14,0.00022027,3]
[330613727,1719624678030,-1453.57,0.00022027,3]
[330613728,1719624678039,-1852.58,0.00022027,3]
[330613729,1719624678049,-500.0,0.00022027,3]
[330613730,1719624678058,-500.0,0.00022027,3]
[330613731,1719624678067,-500.0,0.00022027,3]
[330613732,1719624678077,-1763.92,0.00022027,3]
[330613733,1719624678086,-4338.01,0.00022027,3]
[330613734,1719624678095,-363.73302298,0.00022027,3]
[330613735,1719624678104,-5418.69,0.00022027,3]
[330613736,1719624678114,-1888.95,0.00022027,3]
[330613737,1719624678124,-500.0,0.00022027,3]
[330613738,1719624678134,-1136.46,0.00022027,3]
[330613739,1719624678145,-500.0,0.00022027,3]
[330613740,1719624678154,-500.0,0.00022027,3]
[330613741,1719624678163,-547.65,0.00022027,3]
[330613742,1719624678174,-500.0,0.00022027,3]
[330613743,1719624678184,-500.0,0.00022027,3]
[330613744,1719624678193,-1021.33,0.00022027,3]
[330613745,1719624678203,-500.0,0.00022027,3]
[330613746,1719624678212,-1168.6,0.00022027,3]
[330613747,1719624678222,-500.0,0.00022027,3]
[330613748,1719624678231,-1957.94,0.00022027,3]
[330613749,1719624678242,-500.0,0.00022027,3]
[330613750,1719624678252,-506.21,0.00022027,3]
[330613751,1719624678262,-500.0,0.00022027,3]
[330613752,1719624678271,-1780.68,0.00022027,3]
[330613753,1719624678281,-500.0,0.00022027,3]
[330613754,1719624678290,-1322.96,0.00022027,3]
[330613755,1719624678299,-500.0,0.00022027,3]
[330613756,1719624678309,-1583.67,0.00022027,3]
[330613757,1719624678318,-547.15,0.00022027,3]
[330613758,1719624678327,-2240.67,0.00022027,3]
[330613759,1719624678337,-966.47,0.00022027,3]
[330613760,1719624678349,-500.0,0.00022027,3]
[330613761,1719624678358,-1135.47,0.00022027,3]
[330613762,1719624678367,-712.47,0.00022027,3]
[330613763,1719624678376,-500.0,0.00022027,3]
[330613764,1719624678387,-500.0,0.00022027,3]
[330613765,1719624678396,-629.98,0.00022027,3]
[330613766,1719624678406,-500.0,0.00022027,3]
[330613767,1719624678415,-4477.0,0.00022027,3]
[330613768,1719624678428,-500.0,0.00022027,3]
[330613769,1719624678439,-4088.66,0.00022027,3]
[330613770,1719624678448,-1164.4,0.00022027,3]
[330613771,1719624678457,-500.0,0.00022027,3]
[330613772,1719624678467,-754.53,0.00022027,3]
[330613773,1719624678476,-1160.53,0.00022027,3]
[330613774,1719624678486,-500.0,0.00022027,3]
[330613775,1719624678495,-500.0,0.00022027,3]
[330613776,1719624678504,-968.77,0.00022027,3]
[330613777,1719624678513,-3288.62,0.00022027,3]
[330613778,1719624678523,-600.27,0.00022027,3]
[330613779,1719624678532,-894.99,0.00022027,3]
[330613780,1719624678542,-1212.59,0.00022027,3]
[330613781,1719624678552,-1000.94,0.00022027,3]
[330613782,1719624678561,-500.0,0.00022027,3]
[330613783,1719624678570,-1879.36,0.00022027,3]
[330613784,1719624678579,-880.93,0.00022027,3]
[330613785,1719624678589,-1375.65,0.00022027,3]
[330613786,1719624678599,-500.0,0.00022027,3]
[330613787,1719624678608,-500.0,0.00022027,3]
[330613788,1719624678618,-1503.63,0.00022027,3]
[330613789,1719624678627,-500.0,0.00022027,3]
[330613790,1719624678637,-2293.24,0.00022027,3]
[330613791,1719624678647,-919.92,0.00022027,3]
[330613792,1719624678657,-1260.45,0.00022027,3]
[330613793,1719624678667,-512.15,0.00022027,3]
[330613794,1719624678677,-500.0,0.00022027,3]
[330613795,1719624678687,-500.0,0.00022027,3]
[330613796,1719624678697,-500.0,0.00022027,3]
[330613797,1719624678707,-711.4,0.00022027,3]
[330613799,1719624678716,-500.0,0.00022027,3]
[330613800,1719624678726,-500.0,0.00022027,3]
[330613801,1719624678736,-1367.15,0.00022027,3]
[330613802,1719624678747,-3233.11,0.00022027,3]
[330613803,1719624678756,-500.0,0.00022027,3]
[330613804,1719624678767,-500.0,0.00022027,3]
[330613805,1719624678776,-500.0,0.00022027,3]
[330613806,1719624678786,-1221.28,0.00022027,3]
[330613807,1719624678797,-500.0,0.00022027,3]
[330613808,1719624678807,-1228.83,0.00022027,3]
[330613809,1719624678817,-500.0,0.00022027,3]
[330613810,1719624678827,-500.0,0.00022027,3]
[330613811,1719624678837,-4736.98,0.00022027,3]
[330613812,1719624678847,-2344.97,0.00022027,3]
[330613813,1719624678857,-500.0,0.00022027,3]
[330613814,1719624678867,-500.0,0.00022027,3]
[330613815,1719624678876,-500.0,0.00022027,3]
[330613816,1719624678886,-1327.87,0.00022027,3]
[330613817,1719624678896,-865.66,0.00022027,3]
[330613818,1719624678906,-903.44,0.00022027,3]
[330613819,1719624678917,-639.25,0.00022027,3]
[330613820,1719624678927,-2478.46,0.00022027,3]
[330613821,1719624678937,-765.2,0.00022027,3]
[330613822,1719624678947,-500.0,0.00022027,3]
[330613823,1719624678957,-724.72,0.00022027,3]
[330613824,1719624678968,-500.0,0.00022027,3]
[330613825,1719624678978,-1130.74,0.00022027,3]
[330613826,1719624678988,-608.62,0.00022027,3]
[330613827,1719624678998,-500.0,0.00022027,3]
[330613828,1719624679009,-1301.51,0.00022027,3]
[330613829,1719624679020,-2751.54,0.00022027,3]
[330613830,1719624679030,-754.96,0.00022027,3]
[330613831,1719624679039,-921.36,0.00022027,3]
[330613832,1719624679049,-1174.65,0.00022027,3]
[330613833,1719624679060,-749.66,0.00022027,3]
[330613834,1719624679070,-620.45,0.00022027,3]
[330613835,1719624679081,-507.8,0.00022027,3]
[330613836,1719624679091,-500.0,0.00022027,3]
[330613837,1719624679101,-974.62,0.00022027,3]
[330613838,1719624679111,-500.0,0.00022027,3]
[330613839,1719624679122,-1527.47,0.00022027,3]
[330613840,1719624679133,-1163.73,0.00022027,3]
[330613841,1719624679144,-500.0,0.00022027,3]
[330613842,1719624679154,-1804.78,0.00022027,3]
[330613843,1719624679165,-500.0,0.00022027,3]
[330613844,1719624679174,-772.94,0.00022027,3]
[330613845,1719624679185,-839.14,0.00022027,3]
[330613846,1719624679195,-902.36,0.00022027,3]
[330613847,1719624679204,-500.0,0.00022027,3]
[330613848,1719624679215,-1380.97,0.00022027,3]
[330613849,1719624679225,-500.0,0.00022027,3]
[330613850,1719624679235,-500.0,0.00022027,3]
[330613851,1719624679247,-1160.23,0.00022027,3]
[330613852,1719624679258,-500.0,0.00022027,3]
[330613853,1719624679268,-1029.12,0.00022027,3]
[330613854,1719624679278,-1141.72,0.00022027,3]
[330613855,1719624679288,-561.18,0.00022027,3]
[330613856,1719624679299,-10528.0,0.00022027,3]
[330613857,1719624679309,-500.0,0.00022027,3]
[330613858,1719624679320,-3611.32,0.00022027,3]
[330613859,1719624679330,-884.16,0.00022027,3]
[330613860,1719624679341,-657.66,0.00022027,3]
[330613861,1719624679355,-1253.72,0.00022027,3]
[330613862,1719624679366,-1596.0,0.00022027,3]
[330613863,1719624679376,-500.0,0.00022027,3]
[330613864,1719624679386,-913.6,0.00022027,3]
[330613865,1719624679396,-522.88812871,0.00022027,3]
[330613866,1719624679406,-500.0,0.00022027,3]
[330613867,1719624679416,-539.8,0.00022027,3]
[330613868,1719624679426,-2734.83,0.00022027,3]
[330613869,1719624679436,-1243.17,0.00022027,3]
[330613870,1719624679446,-666.63,0.00022027,3]
[330613871,1719624679456,-500.0,0.00022027,3]
[330613872,1719624679466,-858.32,0.00022027,3]
[330613873,1719624679476,-500.0,0.00022027,3]
[330613874,1719624679486,-2881.65,0.00022027,3]
[330613875,1719624679496,-2950.95,0.00022027,3]
[330613876,1719624679506,-1102.31,0.00022027,3]
[330613877,1719624679516,-599.97,0.00022027,3]
[330613878,1719624679526,-500.0,0.00022027,3]
[330613879,1719624679536,-573.04,0.00022027,3]
[330613880,1719624679546,-3100.35,0.00022027,3]
[330613881,1719624679556,-1238.0,0.00022027,3]
[330613882,1719624679566,-500.0,0.00022027,3]
[330613883,1719624679576,-997.01,0.00022027,3]
[330613884,1719624679586,-1154.76,0.00022027,3]
[330613885,1719624679596,-1151.54,0.00022027,3]
[330613886,1719624679606,-500.0,0.00022027,3]
[330613887,1719624679616,-500.0,0.00022027,3]
[330613888,1719624679627,-500.0,0.00022027,3]
[330613889,1719624679637,-500.0,0.00022027,3]
[330613890,1719624679648,-957.42,0.00022027,3]
[330613891,1719624679658,-500.0,0.00022027,3]
[330613892,1719624679668,-500.0,0.00022027,3]
[330613893,1719624679678,-500.0,0.00022027,3]
[330613894,1719624679689,-2252.38,0.00022027,3]
[330613895,1719624679699,-500.0,0.00022027,3]
[330613896,1719624679708,-3833.58,0.00022027,3]
[330613897,1719624679723,-1048.64,0.00022027,3]
[330613898,1719624679734,-847.39,0.00022027,3]
[330613899,1719624679746,-976.22,0.00022027,3]
[330613900,1719624679757,-4549.24,0.00022027,3]
[330613901,1719624679768,-958.03,0.00022027,3]
[330613902,1719624679779,-500.0,0.00022027,3]
[330613903,1719624679790,-500.0,0.00022027,3]
[330613904,1719624679801,-859.51,0.00022027,3]
[330613905,1719624679812,-955.16,0.00022027,3]
[330613906,1719624679823,-715.53,0.00022027,3]
[330613907,1719624679835,-500.0,0.00022027,3]
[330613908,1719624679845,-500.0,0.00022027,3]
[330613909,1719624679856,-500.0,0.00022027,3]
[330613910,1719624679867,-1438.6,0.00022027,3]
[330613911,1719624679879,-500.0,0.00022027,3]
[330613912,1719624679889,-500.0,0.00022027,3]
[330613913,1719624679899,-500.0,0.00022027,3]
[330613914,1719624679910,-500.0,0.00022027,3]
[330613915,1719624679921,-500.0,0.00022027,3]
[330613916,1719624679932,-955.13,0.00022027,3]
[330613917,1719624679943,-385.770001,0.00022027,3]
[330613918,1719624679953,-832.58,0.00022027,3]
[330613919,1719624679964,-734.17,0.00022027,3]
[330613920,1719624679976,-1152.66,0.00022027,3]
[330613921,1719624679986,-7463.31,0.00022027,3]
[330613922,1719624679997,-500.0,0.00022027,3]
[330613923,1719624680008,-3259.77,0.00022027,3]
[330613924,1719624680018,-500.0,0.00022027,3]
[330613925,1719624680029,-524.3,0.00022027,3]
[330613926,1719624680040,-518.16,0.00022027,3]
[330613927,1719624680050,-733.59,0.00022027,3]
[330613928,1719624680061,-1989.77,0.00022027,3]
[330613929,1719624680072,-500.0,0.00022027,3]
[330613930,1719624680083,-1076.15,0.00022027,3]
[330613931,1719624680094,-500.0,0.00022027,3]
[330613932,1719624680104,-526.94,0.00022027,3]